[Event "10th Tal Memorial 2016 - Blitz"]
[Site "Moscow"]
[Date "2016.09.25"]
[Round "9"]
[White "Gelfand, Boris"]
[Black "Aronian, Levon"]
[Result "0-1"]
[ECO "A05"]
[WhiteElo "2743"]
[BlackElo "2795"]
[Annotator "ChessBase"]
[PlyCount "134"]
[EventDate "2016.??.??"]
[EventType "tourn"]
[EventCountry "RUS"]
[SourceTitle "playchess.com"]
[Source "ChessBase"]
[TimeControl "180+2"]

1. Nf3 {[%emt 0:00:00]} Nf6 {[%emt 0:00:00]} 2. g3 {[%emt 0:00:00]} d5 {
[%emt 0:00:01]} 3. Bg2 {[%emt 0:00:02]} e6 {[%emt 0:00:01]} 4. O-O {[%emt 0:00:
04]} Be7 {[%emt 0:00:02]} 5. c4 {[%emt 0:00:06]} O-O {[%emt 0:00:01]} 6. b3 {
[%emt 0:00:01]} b6 {[%emt 0:00:02]} 7. Bb2 {[%emt 0:00:01]} Bb7 {[%emt 0:00:01]
} 8. cxd5 {[%emt 0:00:06]} Nxd5 {[%emt 0:00:01]} 9. d4 {[%emt 0:00:01]} c5 {
[%emt 0:00:01]} 10. dxc5 {[%emt 0:00:06]} Bxc5 {[%emt 0:00:02]} 11. Nbd2 {
[%emt 0:00:01]} Nd7 {[%emt 0:00:17]} 12. a3 {[%emt 0:00:04]} Rc8 {[%emt 0:00:
08]} 13. Rc1 {[%emt 0:00:29]} Be7 {[%emt 0:00:02]} 14. e4 {[%emt 0:00:08]} Rxc1
15. Qxc1 {[%emt 0:00:01]} N5f6 {[%emt 0:00:28]} 16. e5 {[%emt 0:00:01]} Nd5 {
[%emt 0:00:01]} 17. Nc4 {[%emt 0:00:12]} Qb8 {[%emt 0:00:19]} 18. Qd2 {[%emt 0:
00:32]} Rd8 {[%emt 0:00:14]} 19. b4 {[%emt 0:00:09]} Nf8 {[%emt 0:00:19]} 20.
Nd4 {[%emt 0:00:03]} Nc7 {[%emt 0:00:19]} 21. Qe2 {[%emt 0:00:08]} Bxg2 {
[%emt 0:00:06]} 22. Kxg2 {[%emt 0:00:01]} Qb7+ {[%emt 0:00:01]} 23. Qf3 {
[%emt 0:00:03]} Nd5 {[%emt 0:00:01]} 24. Kg1 {[%emt 0:00:17]} Ng6 {[%emt 0:00:
11]} 25. Qe4 {[%emt 0:00:06]} Qd7 {[%emt 0:00:27]} 26. h4 {[%emt 0:00:07]} Bf8
{[%emt 0:00:03]} 27. h5 {[%emt 0:00:02]} Nge7 {[%emt 0:00:01]} 28. Rc1 {
[%emt 0:00:14]} Rc8 {[%emt 0:00:02]} 29. Nd6 {[%emt 0:00:20]} Rxc1+ {[%emt 0:
00:02]} 30. Bxc1 {[%emt 0:00:00]} Nc6 {[%emt 0:00:02]} 31. Bb2 {[%emt 0:00:05]}
Nxe5 {[%emt 0:00:21]} 32. N6b5 {[%emt 0:00:17]} Nc4 {[%emt 0:00:06]} 33. Bc1 {
[%emt 0:00:01]} a6 {[%emt 0:00:06]} 34. Na7 {[%emt 0:00:04]} Qxa7 35. Nc6 Nd6 {
[%emt 0:00:13]} 36. Qxd5 {[%emt 0:00:02]} exd5 {[%emt 0:00:01]} 37. Nxa7 {
[%emt 0:00:01]} Nc4 {[%emt 0:00:01]} 38. Kf1 {[%emt 0:00:03]} a5 {[%emt 0:00:
01]} 39. Nc6 {[%emt 0:00:03]} axb4 {[%emt 0:00:01]} 40. axb4 f6 {[%emt 0:00:02]
} 41. Ke2 {[%emt 0:00:03]} Kf7 {[%emt 0:00:00]} 42. f4 {[%emt 0:00:03]} Ke6 {
[%emt 0:00:03]} 43. Kd3 {[%emt 0:00:03]} Kd7 {[%emt 0:00:02]} 44. b5 {[%emt 0:
00:03]} Bc5 {[%emt 0:00:07]} 45. Nd4 {[%emt 0:00:06]} Bxd4 {[%emt 0:00:03]} 46.
Kxd4 {[%emt 0:00:01]} Nd6 {[%emt 0:00:01]} 47. Kxd5 {[%emt 0:00:02]} Nxb5 {
[%emt 0:00:00]} 48. g4 {[%emt 0:00:05]} Nc7+ {[%emt 0:00:03]} 49. Ke4 {[%emt 0:
00:01]} g6 {[%emt 0:00:02]} 50. Bb2 {[%emt 0:00:02]} Ne8 {[%emt 0:00:03]} 51.
h6 {[%emt 0:00:03]} Kc6 {[%emt 0:00:04]} 52. f5 {[%emt 0:00:04]} Nd6+ {[%emt 0:
00:02]} 53. Kf4 {[%emt 0:00:03]} gxf5 {[%emt 0:00:01]} 54. gxf5 {[%emt 0:00:01]
} Ne8 {[%emt 0:00:01]} 55. Ke4 {[%emt 0:00:02]} Kc5 {[%emt 0:00:02]} 56. Bd4+ {
[%emt 0:00:01]} Kc6 {[%emt 0:00:01]} 57. Bb2 {[%emt 0:00:02]} b5 {[%emt 0:00:
01]} 58. Ba3 {[%emt 0:00:04]} Nd6+ {[%emt 0:00:01]} 59. Kf4 {[%emt 0:00:01]}
Kd5 {[%emt 0:00:01]} 60. Bb4 {[%emt 0:00:02]} Ne8 {[%emt 0:00:01]} 61. Be7 {
[%emt 0:00:01]} Kd4 {[%emt 0:00:07]} 62. Bf8 {[%emt 0:00:03]} Kc4 {[%emt 0:00:
02]} 63. Ke4 {[%emt 0:00:02]} Nc7 {[%emt 0:00:01]} 64. Ba3 {[%emt 0:00:04]} Nd5
{[%emt 0:00:02]} 65. Bb2 {[%emt 0:00:01]} b4 {[%emt 0:00:01]} 66. Bd4 {[%emt 0:
00:02]} Nc3+ {[%emt 0:00:02]} 67. Ke3 {[%emt 0:00:00]} b3 {[%emt 0:00:00]} 0-1

[Event "10th Tal Memorial 2016 - Blitz"]
[Site "Moscow"]
[Date "2016.09.25"]
[Round "9"]
[White "Giri, Anish"]
[Black "Tomashevsky, Evgeny"]
[Result "1-0"]
[ECO "C50"]
[WhiteElo "2755"]
[BlackElo "2731"]
[Annotator "ChessBase"]
[PlyCount "125"]
[EventDate "2016.??.??"]
[EventType "tourn"]
[EventCountry "RUS"]
[SourceTitle "playchess.com"]
[Source "ChessBase"]
[TimeControl "180+2"]

1. e4 {[%emt 0:00:00]} e5 {[%emt 0:00:00]} 2. Nf3 {[%emt 0:00:00]} Nc6 {
[%emt 0:00:00]} 3. Bc4 {[%emt 0:00:00]} Bc5 {[%emt 0:00:01]} 4. O-O {[%emt 0:
00:00]} Nf6 5. d3 O-O 6. c3 d5 {[%emt 0:00:05]} 7. exd5 {[%emt 0:00:03]} Nxd5 {
[%emt 0:00:01]} 8. a4 {[%emt 0:00:01]} a6 {[%emt 0:00:03]} 9. Nbd2 {[%emt 0:00:
05]} Kh8 {[%emt 0:00:01]} 10. Re1 {[%emt 0:00:07]} f6 {[%emt 0:00:09]} 11. d4 {
[%emt 0:00:09]} exd4 {[%emt 0:01:05]} 12. Nb3 {[%emt 0:00:05]} Ba7 {[%emt 0:00:
03]} 13. Nbxd4 {[%emt 0:00:17]} Nxd4 {[%emt 0:00:01]} 14. Nxd4 {[%emt 0:00:03]}
c6 {[%emt 0:00:01]} 15. a5 {[%emt 0:00:08]} Qd6 {[%emt 0:00:06]} 16. g3 {
[%emt 0:00:38]} Bh3 {[%emt 0:00:37]} 17. Qf3 {[%emt 0:00:40]} Bxd4 {[%emt 0:00:
12]} 18. cxd4 {[%emt 0:00:04]} Qb4 {[%emt 0:00:13]} 19. Qe2 {[%emt 0:00:00]}
Bg4 {[%emt 0:00:14]} 20. Qf1 {[%emt 0:00:01]} Rae8 {[%emt 0:00:00]} 21. Be3 {
[%emt 0:00:21]} Qxb2 {[%emt 0:00:32]} 22. Bxd5 {[%emt 0:00:09]} cxd5 {[%emt 0:
00:01]} 23. Reb1 {[%emt 0:00:08]} Qc2 {[%emt 0:00:06]} 24. Rxb7 {[%emt 0:00:01]
} Be2 {[%emt 0:00:09]} 25. Qb1 {[%emt 0:00:01]} Qc8 {[%emt 0:00:02]} 26. Ra7 {
[%emt 0:00:21]} Rg8 {[%emt 0:00:02]} 27. Qb7 {[%emt 0:00:10]} Qf5 {[%emt 0:00:
02]} 28. Qd7 {[%emt 0:00:03]} Qh5 {[%emt 0:00:01]} 29. h3 {[%emt 0:00:10]} Bd3
{[%emt 0:00:04]} 30. Qg4 {[%emt 0:00:02]} Qxg4 {[%emt 0:00:03]} 31. hxg4 {
[%emt 0:00:01]} Ra8 {[%emt 0:00:02]} 32. Rd7 {[%emt 0:00:02]} Rgd8 {[%emt 0:00:
01]} 33. Rc7 {[%emt 0:00:03]} Rdc8 {[%emt 0:00:00]} 34. Rac1 {[%emt 0:00:01]}
Rxc7 {[%emt 0:00:01]} 35. Rxc7 {[%emt 0:00:01]} h6 {[%emt 0:00:01]} 36. Rc5 {
[%emt 0:00:04]} Bc4 {[%emt 0:00:01]} 37. Rc6 {[%emt 0:00:05]} Ra7 {[%emt 0:00:
01]} 38. f3 {[%emt 0:00:07]} Rb7 39. Rb6 Rc7 {[%emt 0:00:03]} 40. Rb1 {[%emt 0:
00:05]} Bb5 {[%emt 0:00:04]} 41. Rc1 {[%emt 0:00:01]} Bc4 {[%emt 0:00:01]} 42.
Rb1 {[%emt 0:00:00]} Be2 {[%emt 0:00:02]} 43. Kf2 {[%emt 0:00:04]} Rc2 {
[%emt 0:00:01]} 44. Rb7 {[%emt 0:00:04]} Bd1+ {[%emt 0:00:02]} 45. Ke1 {
[%emt 0:00:02]} Bxf3 {[%emt 0:00:01]} 46. Bf4 {[%emt 0:00:00]} Bxg4 {[%emt 0:
00:03]} 47. Ra7 {[%emt 0:00:01]} Be2 {[%emt 0:00:01]} 48. Bd6 {[%emt 0:00:01]}
Bc4 {[%emt 0:00:11]} 49. Bf8 {[%emt 0:00:01]} Re2+ {[%emt 0:00:01]} 50. Kd1 {
[%emt 0:00:00]} Re4 {[%emt 0:00:02]} 51. Bxg7+ {[%emt 0:00:02]} Kh7 {[%emt 0:
00:01]} 52. Bxf6+ {[%emt 0:00:02]} Kg6 {[%emt 0:00:01]} 53. Be5 {[%emt 0:00:01]
} h5 {[%emt 0:00:01]} 54. Kd2 {[%emt 0:00:01]} Kf5 {[%emt 0:00:01]} 55. Kc3 {
[%emt 0:00:01]} Re1 {[%emt 0:00:02]} 56. Kb4 {[%emt 0:00:02]} Rb1+ {[%emt 0:00:
01]} 57. Kc3 {[%emt 0:00:05]} Rb5 {[%emt 0:00:03]} 58. Rxa6 {[%emt 0:00:03]}
Rb3+ {[%emt 0:00:01]} 59. Kc2 {[%emt 0:00:00]} Bxa6 {[%emt 0:00:10]} 60. Kxb3 {
[%emt 0:00:01]} Ke6 {[%emt 0:00:01]} 61. Kb4 {[%emt 0:00:01]} Kd7 {[%emt 0:00:
01]} 62. Kc5 {[%emt 0:00:01]} Bc4 {[%emt 0:00:04]} 63. Kb6 {[%emt 0:00:02]} 1-0

[Event "10th Tal Memorial 2016 - Blitz"]
[Site "Moscow"]
[Date "2016.09.25"]
[Round "9"]
[White "Nepomniachtchi, Ian"]
[Black "Kramnik, Vladimir"]
[Result "1/2-1/2"]
[ECO "C67"]
[WhiteElo "2740"]
[BlackElo "2808"]
[Annotator "ChessBase"]
[PlyCount "33"]
[EventDate "2016.??.??"]
[EventType "tourn"]
[EventCountry "RUS"]
[SourceTitle "playchess.com"]
[Source "ChessBase"]
[TimeControl "180+2"]

1. e4 {[%emt 0:00:00]} e5 {[%emt 0:00:00]} 2. Nf3 {[%emt 0:00:00]} Nc6 {
[%emt 0:00:00]} 3. Bb5 {[%emt 0:00:05]} Nf6 {[%emt 0:00:00]} 4. O-O {[%emt 0:
00:01]} Nxe4 {[%emt 0:00:02]} 5. Re1 {[%emt 0:00:01]} Nd6 {[%emt 0:00:01]} 6.
Nxe5 {[%emt 0:00:02]} Be7 {[%emt 0:00:00]} 7. Bf1 {[%emt 0:00:01]} Nxe5 {
[%emt 0:00:02]} 8. Rxe5 {[%emt 0:00:01]} O-O {[%emt 0:00:01]} 9. d4 {[%emt 0:
00:02]} Bf6 {[%emt 0:00:02]} 10. Re1 {[%emt 0:00:04]} Re8 {[%emt 0:00:01]} 11.
c3 {[%emt 0:00:14]} Rxe1 {[%emt 0:00:09]} 12. Qxe1 {[%emt 0:00:01]} Ne8 {
[%emt 0:00:13]} 13. Bf4 {[%emt 0:00:05]} d5 {[%emt 0:00:02]} 14. Bd3 {[%emt 0:
00:04]} c6 {[%emt 0:00:06]} 15. Nd2 {[%emt 0:00:02]} g6 {[%emt 0:00:01]} 16.
Qe3 {[%emt 0:00:02]} Ng7 {[%emt 0:00:11]} 17. Re1 {[%emt 0:00:01]} 1/2-1/2

[Event "10th Tal Memorial 2016 - Blitz"]
[Site "Moscow"]
[Date "2016.09.25"]
[Round "9"]
[White "Svidler, Peter"]
[Black "Anand, Viswanathan"]
[Result "1/2-1/2"]
[ECO "C01"]
[WhiteElo "2745"]
[BlackElo "2776"]
[Annotator "ChessBase"]
[PlyCount "49"]
[EventDate "2016.??.??"]
[EventType "tourn"]
[EventCountry "RUS"]
[SourceTitle "playchess.com"]
[Source "ChessBase"]
[TimeControl "180+2"]

1. e4 {[%emt 0:00:00]} e6 {[%emt 0:00:00]} 2. d4 {[%emt 0:00:01]} d5 {[%emt 0:
00:00]} 3. exd5 {[%emt 0:00:02]} exd5 {[%emt 0:00:01]} 4. Nf3 {[%emt 0:00:02]}
Nf6 {[%emt 0:00:01]} 5. Bd3 {[%emt 0:00:02]} Bd6 {[%emt 0:00:03]} 6. O-O {
[%emt 0:00:01]} O-O {[%emt 0:00:02]} 7. Bg5 {[%emt 0:00:03]} Bg4 {[%emt 0:00:
03]} 8. Nbd2 {[%emt 0:00:02]} Nbd7 {[%emt 0:00:01]} 9. c3 {[%emt 0:00:01]} c6 {
[%emt 0:00:02]} 10. Qc2 {[%emt 0:00:01]} h6 {[%emt 0:00:02]} 11. Bh4 {[%emt 0:
00:02]} Qc7 {[%emt 0:00:07]} 12. Bg3 {[%emt 0:00:01]} Rfe8 {[%emt 0:00:04]} 13.
Rfe1 {[%emt 0:00:04]} Rxe1+ {[%emt 0:00:13]} 14. Rxe1 {[%emt 0:00:01]} Re8 {
[%emt 0:00:02]} 15. Rxe8+ {[%emt 0:00:09]} Nxe8 {[%emt 0:00:01]} 16. Bf5 {
[%emt 0:00:39]} Bxf5 {[%emt 0:00:05]} 17. Qxf5 {[%emt 0:00:02]} Bxg3 {[%emt 0:
00:01]} 18. hxg3 {[%emt 0:00:01]} g6 {[%emt 0:00:08]} 19. Qd3 {[%emt 0:00:05]}
Kg7 {[%emt 0:00:08]} 20. Nf1 {[%emt 0:00:10]} Nd6 {[%emt 0:00:10]} 21. Ne3 {
[%emt 0:00:01]} Qb6 {[%emt 0:00:17]} 22. Qc2 {[%emt 0:00:03]} Qd8 {[%emt 0:00:
07]} 23. Qd3 {[%emt 0:00:02]} Qb6 {[%emt 0:00:01]} 24. Qc2 {[%emt 0:00:01]} Qd8
{[%emt 0:00:01]} 25. Qd3 {[%emt 0:00:01]} 1/2-1/2